fUST/lending_fUST_20260111
["ID","MTS","AMOUNT","RATE_DAILY","PERIOD"]
[401307386,1768121448590,-3588.20550987,0.00020267,2]
[401307387,1768121448600,-152.58,0.000203,2]
[401307388,1768121448611,-640.85,0.000204,2]
[401307389,1768121448621,-506.7938,0.00020411,5]
[401307390,1768121448630,-454.65002405,0.00020412,4]
[401307391,1768121448640,-934.65104004,0.00020537,2]
[401307392,1768121448649,-301.57435521,0.00020601,4]
[401307393,1768121448659,-640.85,0.000209,2]
[401307394,1768121448669,-152.58,0.000209,2]
[401307395,1768121448679,-640.85,0.000214,2]
[401307396,1768121448689,-234.89,0.000215,2]
[401307397,1768121448699,-1000.0,0.00021585,10]
[401307398,1768121448709,-1000.0,0.00021585,10]
[401307399,1768121448720,-1000.0,0.00021585,10]
[401307400,1768121448730,-152.58,0.000216,2]
[401307401,1768121448739,-640.85,0.000219,2]
[401307402,1768121448749,-585.11053,0.00021918,2]
[401307403,1768121448759,-152.90727816,0.00021918,2]
[401307404,1768121448768,-468.6,0.00022069,2]
[401307405,1768121448779,-152.58,0.000222,2]
[401307406,1768121448789,-640.85,0.000224,2]
[401307407,1768121448798,-1087.80747027,0.00022515,2]
[401307408,1768121448808,-1009.09227332,0.00022537,2]
[401307409,1768121448821,-152.58,0.000228,2]
[401307410,1768121448830,-640.85,0.00023,2]
[401307411,1768121448839,-152.58,0.000234,2]
[401307412,1768121448941,-640.85,0.000235,2]
[401307413,1768121448953,-468.6,0.00023946,2]
[401307414,1768121448963,-640.85,0.00024,2]
[401307415,1768121448972,-152.58,0.00024,2]
[401307416,1768121448982,-640.85,0.000245,2]
[401307417,1768121448992,-1083.53350659,0.00024537,2]
[401307418,1768121449002,-152.58,0.000246,2]
[401307419,1768121449013,-500.0,0.00024658,2]
[401307420,1768121449023,-500.0,0.00024795,2]
[401307421,1768121449033,-76526.0115688,0.000248,2]
[401307422,1768121449042,-1087.80747027,0.00024899,2]
[401307423,1768121449052,-400097.821185,0.000249,2]
[401307424,1768121449062,-500.0,0.00024932,2]
[401307425,1768121449071,-16224.21,0.00025,2]
[401307426,1768121449083,-640.85,0.00025,2]
[401307427,1768121449094,-500.0,0.00025069,2]
[401307428,1768121449103,-152.58,0.000252,2]
[401307429,1768121449113,-250.0,0.00025205,2]
[401307430,1768121449122,-500.0,0.00025206,2]
[401307431,1768121449131,-585.11053,0.00025342,2]
[401307432,1768121449140,-500.0,0.00025343,2]
[401307433,1768121449150,-261.77529652,0.00025452,14]
[401307434,1768121449159,-500.0,0.0002548,2]
[401307435,1768121449169,-640.85,0.000255,2]
[401307436,1768121449179,-500.0,0.00025617,2]
[401307437,1768121449188,-350.0,0.00025753,2]
[401307438,1768121449197,-255.99235489,0.00025754,2]
[401307439,1768121449208,-152.58,0.000258,2]
[401307440,1768121449218,-468.6,0.00025823,2]
[401307441,1768121449228,-2000.51544348,0.0002587,2]
[401307442,1768121449237,-640.85,0.00026,2]
[401307443,1768121449247,-450.0,0.00026301,2]
[401307444,1768121449257,-640.85,0.000265,2]
[401307445,1768121449266,-152.58,0.000265,2]
[401307446,1768121449277,-3588.20550987,0.00026522,2]
[401307447,1768121449286,-1157.97473987,0.00026537,2]
[401307448,1768121449297,-2378.23,0.000266,14]
[401307449,1768121449308,-550.0,0.00026849,2]
[401307450,1768121449318,-182.0,0.00027096,23]
[401307451,1768121449328,-640.85,0.000271,2]
[401307452,1768121449340,-152.58,0.000271,2]
[401307453,1768121449350,-181.17141011,0.00027119,2]
[401307454,1768121449360,-1087.80747027,0.00027282,2]
[401307455,1768121449370,-702.10519323,0.00027397,5]
[401307456,1768121449379,-640.85,0.000276,2]
[401307457,1768121449389,-468.6,0.00027699,3]
[401307458,1768121449398,-152.58,0.000277,2]
[401307459,1768121449407,-5000.0,0.00028037,2]
[401307460,1768121449417,-640.85,0.000281,2]
[401307461,1768121449426,-152.58,0.000283,2]
[401307462,1768121449436,-300.0,0.00028329,2]
[401307463,1768121449445,-300.0,0.00028329,2]
[401307464,1768121449455,-300.0,0.00028329,2]
[401307465,1768121449464,-300.0,0.00028329,2]
[401307466,1768121449474,-1232.41597315,0.00028537,2]
[401307467,1768121449483,-640.85,0.000286,2]
[401307468,1768121449492,-211.0,0.0002874,30]
[401307469,1768121449501,-585.11053,0.00028767,60]
[401307470,1768121449511,-152.58,0.000289,2]
[401307471,1768121449520,-210.77216325,0.00028982,5]
[401307472,1768121449530,-8382.93313115,0.0002902,2]
[401307473,1768121449540,-640.85,0.000291,2]
[401307474,1768121449549,-1112.0,0.0002949,2]
[401307475,1768121449559,-1112.0,0.00029491,2]
[401307476,1768121449569,-152.58,0.000295,2]
[401307477,1768121449578,-468.6,0.00029576,4]
[401307478,1768121449588,-640.85,0.000296,2]
[401307479,1768121449597,-1087.80747027,0.00029666,2]
[401307480,1768121449606,-210.77216324,0.00029761,5]
[401307481,1768121449615,-1041.66666667,0.0003,30]
[401307482,1768121449624,-640.85,0.000301,2]
[401307483,1768121449633,-151.0,0.000301,14]
[401307484,1768121449642,-152.58,0.000301,2]
[401307485,1768121449652,-300.0,0.00030137,5]
[401307486,1768121449661,-5000.0,0.00030203,2]
[401307487,1768121449670,-356.46,0.00030274,25]
[401307488,1768121449679,-176.72,0.00030274,25]
[401307489,1768121449688,-16224.21,0.000303,2]
[401307490,1768121449697,-500.0,0.00030336,7]
[401307491,1768121449706,-2042.6223362,0.000305,5]
[401307492,1768121449716,-1306.85720643,0.00030537,2]
[401307493,1768121449726,-162.0,0.00030932,43]
[401307494,1768121449735,-468.6,0.00031453,5]
[401307495,1768121449745,-536.72987461,0.00032032,7]
[401307496,1768121449754,-1087.80747027,0.0003205,2]
[401307497,1768121449763,-5000.0,0.0003237,2]
[401307498,1768121449773,-171.0,0.000324,120]
[401307499,1768121449782,-1381.2984397,0.00032537,2]
[401307500,1768121449791,-3588.20550987,0.00032777,2]
[401307501,1768121449801,-999.0,0.00032876,120]
[401307502,1768121449811,-500.0,0.00032877,8]
[401307503,1768121449820,-231.65,0.00032877,10]
[401307504,1768121449829,-300.0,0.00032877,5]
[401307505,1768121449838,-450.0,0.00032877,5]
[401307506,1768121449847,-174.0,0.00033123,58]
[401307507,1768121449857,-1045039.0068,0.0003322,30]
[401307508,1768121449867,-1112.0,0.00033299,2]
[401307509,1768121449876,-468.6,0.0003333,6]
[401307510,1768121449885,-600.0,0.00033425,5]
[401307511,1768121449895,-210.0,0.00033699,5]
[401307512,1768121449904,-151.0,0.00033972,31]
[401307513,1768121449914,-301.393574,0.00033972,31]
[401307514,1768121449924,-151.0,0.00033972,31]
[401307515,1768121449933,-151.0,0.00033972,31]
[401307516,1768121449943,-152.567384,0.00033972,31]
[401307517,1768121449952,-151.0,0.00033972,31]
[401307518,1768121449961,-728.329358,0.00033972,31]
[401307519,1768121449970,-728.329358,0.00033972,31]
[401307520,1768121449980,-728.329358,0.00033972,31]
[401307521,1768121449990,-728.329358,0.00033972,31]
[401307522,1768121450001,-160.002934,0.00033972,31]
[401307523,1768121450011,-151.0,0.00033972,2]
[401307524,1768121450020,-200.586455,0.00033972,31]
[401307525,1768121450030,-151.0,0.00033972,31]
[401307526,1768121450039,-151.0,0.00033972,31]
[401307527,1768121450049,-151.0,0.00033972,31]
[401307528,1768121450058,-161.662681,0.00033972,31]
[401307529,1768121450068,-999.0,0.00033972,120]
[401307530,1768121450080,-151.0,0.00033972,31]
[401307531,1768121450089,-151.0,0.00033972,31]
[401307532,1768121450098,-151.0,0.00033972,31]
[401307533,1768121450107,-151.0,0.00033972,31]
[401307534,1768121450116,-226.782828,0.00033972,31]
[401307535,1768121450127,-173.073557,0.00033972,31]
[401307536,1768121450136,-151.0,0.00033972,31]
[401307537,1768121450145,-151.0,0.00033972,31]
[401307538,1768121450154,-151.0,0.00033972,31]
[401307539,1768121450165,-151.0,0.00033972,31]
[401307540,1768121450176,-173.073557,0.00033972,31]
[401307541,1768121450185,-151.0,0.00033972,31]
[401307542,1768121450195,-173.073557,0.00033972,31]
[401307543,1768121450205,-173.073557,0.00033972,31]
[401307544,1768121450215,-172.824008,0.00033972,31]
[401307545,1768121450225,-151.0,0.00033972,31]
[401307546,1768121450234,-151.0,0.00033972,31]
[401307547,1768121450244,-151.0,0.00033972,31]
[401307548,1768121450254,-151.0,0.00033972,31]
[401307549,1768121450263,-151.0,0.00033972,31]
[401307550,1768121450273,-151.0,0.00033972,31]
[401307551,1768121450282,-151.0,0.00033972,31]
[401307552,1768121450291,-1371.756404,0.00033972,31]
[401307553,1768121450300,-1371.756404,0.00033972,31]
[401307554,1768121450310,-1371.756404,0.00033972,31]
[401307555,1768121450320,-1371.756404,0.00033972,31]
[401307556,1768121450330,-151.0,0.00033972,31]
[401307557,1768121450340,-151.0,0.00033972,31]
[401307558,1768121450350,-151.0,0.00033972,31]
[401307559,1768121450360,-151.0,0.00033972,31]
[401307560,1768121450370,-151.0,0.00033972,31]
[401307561,1768121450380,-151.0,0.00033972,31]
[401307562,1768121450389,-151.0,0.00033972,31]
[401307563,1768121450399,-156.419626,0.00033972,31]
[401307564,1768121450408,-900.0,0.00033973,5]
[401307565,1768121450418,-151.0,0.00033973,31]
[401307566,1768121450427,-415.97,0.00034239,60]
[401307567,1768121450437,-415.97,0.00034339,60]
[401307568,1768121450446,-1087.80747027,0.00034433,2]
[401307569,1768121450455,-415.97,0.00034439,60]
[401307570,1768121450466,-725.0,0.00034444,30]
[401307571,1768121450475,-691.0,0.00034444,30]
[401307572,1768121450484,-547.0,0.00034444,30]
[401307573,1768121450494,-1002.20117456,0.0003449,15]
[401307574,1768121450503,-1200.0,0.00034521,5]
[401307575,1768121450513,-270.0,0.00034521,5]
[401307576,1768121450524,-5000.0,0.00034536,3]
[401307577,1768121450533,-1455.73967298,0.00034537,120]
[401307578,1768121450544,-415.97,0.00034539,60]
[401307579,1768121450553,-415.97,0.00034639,60]
[401307580,1768121450563,-2974421.8520888,0.0003465,2]
[401307581,1768121450659,-1097.08178986,0.0003465,2]
[401307582,1768121451544,-3e-08,0.00033972,31]
[401307583,1768121451644,-2362.30259597,0.00033972,31]
[401307584,1768121451655,-2362.302596,0.00033972,31]
[401307585,1768121451665,-2362.302596,0.00033972,31]
[401307586,1768121451673,-2362.302596,0.00033972,31]
[401307587,1768121451684,-13264.98566143,0.0003465,2]
[401307588,1768121451713,-608.11491716,0.0003465,2]
[401307589,1768121466868,266.5562636,7.417e-05,2]
[401307590,1768121469819,138.48202082,0.0002228,110]
[401307591,1768121469844,15.57330817,0.0002228,110]
[401307592,1768121476731,500.0,7.621e-05,2]
[401307593,1768121477050,500.0,7.621e-05,2]
[401307594,1768121477443,500.0,7.621e-05,2]
[401307595,1768121477787,500.0,7.621e-05,2]
[401307596,1768121478876,500.0,7.621e-05,2]
[401307597,1768121479245,500.0,7.621e-05,2]
[401307598,1768121479577,500.0,7.621e-05,2]
[401307599,1768121479973,500.0,7.621e-05,2]
[401307600,1768121480013,564.02166524,7.621e-05,2]
[401307601,1768121480055,500.0,7.621e-05,2]
[401307602,1768121480283,500.0,7.621e-05,2]
[401307603,1768121480442,500.0,7.621e-05,2]
[401307604,1768121482952,250.11494941,7.417e-05,2]
[401307605,1768121519922,500.0,7.417e-05,2]
[401307606,1768121519958,500.0,7.417e-05,2]
[401307607,1768121520117,500.0,7.417e-05,2]
[401307608,1768121520153,500.0,7.417e-05,2]
[401307609,1768121520190,500.0,7.417e-05,2]
[401307610,1768121520229,500.0,7.417e-05,2]
[401307611,1768121520269,500.0,7.417e-05,2]
[401307612,1768121520308,500.0,7.417e-05,2]
[401307613,1768121520344,600.0,7.417e-05,2]
[401307614,1768121528602,500.0,7.417e-05,2]
[401307615,1768121543792,500.0,7.417e-05,2]
[401307616,1768121543848,500.0,7.417e-05,2]
[401307617,1768121543922,500.0,7.417e-05,2]
[401307618,1768121554664,193.87,7.521e-05,2]
[401307619,1768121555025,387.75,7.879e-05,2]
[401307620,1768121555434,581.62,8.237e-05,2]
[401307621,1768121555828,775.49,8.595e-05,2]
[401307622,1768121556263,969.37,8.953e-05,2]
[401307623,1768121632351,156.86,5.929e-05,2]
[401307624,1768121632751,313.72,6.211e-05,2]
[401307625,1768121633149,470.58,6.494e-05,2]
[401307626,1768121633560,627.45,6.776e-05,2]
[401307627,1768121633956,784.31,7.058e-05,2]
[401307628,1768121634470,941.17,7.341e-05,2]
[401307629,1768121634787,1098.03,7.623e-05,2]
[401307630,1768121635244,1199.79,7.905e-05,2]
[401307631,1768121635267,55.1,7.905e-05,2]
[401307632,1768121635706,1411.75,8.188e-05,2]
[401307633,1768121636737,1568.61,8.47e-05,2]
[401307634,1768121710044,188.23,7.148e-05,2]
[401307635,1768121710442,235.29,7.445e-05,2]
[401307636,1768121710870,282.35,7.743e-05,2]
[401307637,1768121711405,329.41,8.041e-05,2]
[401307638,1768121711784,376.47,8.339e-05,2]
[401307639,1768121712197,423.53,8.637e-05,2]
[401307640,1768121712589,470.58,8.934e-05,2]
[401307641,1768121748482,4658.69,8.246e-05,2]
[401307642,1768121748505,764.12204557,8.246e-05,2]
[401307646,1768122479527,184.89,5.994e-05,2]
[401307647,1768122479779,184.89,5.994e-05,2]
[401307648,1768122480069,184.87,5.994e-05,2]
[401307721,1768122637675,-2406.8053389,9.999e-05,2]
[401307723,1768122639777,-339.83814567,9.999e-05,2]
[401307731,1768122639883,-4222.08016878,9.999e-05,2]
[401307831,1768122646361,-9116.28736474,9.899e-05,2]
[401307834,1768122672108,169.4450261,4.771e-05,2]
[401307835,1768123270659,169.42669183,0.0002393,110]
[401307836,1768123270680,2.34074606,0.0002393,110]
[401307838,1768123360770,238.0,0.00011,30]
[401307840,1768123409011,327.10877,0.00030137,120]
[401307841,1768123483617,2207.9235642,8.898e-05,2]
[401307844,1768123661010,155.97259466,0.0002876,120]
[401307846,1768123707119,787.6271708,0.00030135,120]
[401307850,1768123713105,153.68550907,0.000295,120]
[401307851,1768123714385,999.99999813,0.0003,120]
[401307852,1768123720630,165.33413,0.0003013,120]
[401307866,1768123831736,-3046.92709493,9.6e-05,2]
[401307867,1768123831746,-554.0,9.6e-05,2]
[401307868,1768123831756,-207.5785114,9.601e-05,2]
[401307869,1768123831765,-332.693,9.701e-05,2]
[401307870,1768123831775,-178.053,9.701e-05,2]
[401307871,1768123831784,-300.0,9.796e-05,2]
[401307872,1768123831794,-1200.0,9.796e-05,2]
[401307873,1768123831804,-26741.85861512,9.797e-05,2]
[401307876,1768123831911,-500.0,9.796e-05,2]
[401307877,1768123831921,-500.0,9.796e-05,2]
[401307878,1768123831930,-236.86074016,9.796e-05,2]
[401307879,1768123831940,-500.0,9.796e-05,2]
[401307880,1768123831949,-408.10465823,9.796e-05,2]
[401307881,1768123831959,-500.0,9.796e-05,2]
[401307882,1768123831968,-823.70175965,9.797e-05,2]
[401307883,1768123831979,-332.93679327,9.797e-05,2]
[401307906,1768123837854,-500.0,9.796e-05,2]
[401307908,1768123837863,-500.0,9.796e-05,2]
[401307910,1768123837872,-500.0,9.796e-05,2]
[401307912,1768123837881,-500.0,9.796e-05,2]
[401307913,1768123837890,-297.13258925,9.796e-05,2]
[401307916,1768123837907,-202.86741075,9.796e-05,2]
[401307917,1768123837917,-309.95589951,9.796e-05,2]
[401307918,1768123837926,-500.0,9.796e-05,2]
[401307920,1768123837936,-500.0,9.796e-05,2]
[401307921,1768123837946,-500.0,9.796e-05,2]
[401307922,1768123837955,-500.0,9.796e-05,2]
[401307923,1768123837964,-500.0,9.796e-05,2]
[401307924,1768123837974,-500.0,9.796e-05,2]
[401307925,1768123837983,-500.0,9.796e-05,2]
[401307926,1768123837992,-500.0,9.796e-05,2]
[401307927,1768123838001,-500.0,9.796e-05,2]
[401307928,1768123838010,-259.32440364,9.796e-05,2]
[401307929,1768123838019,-500.0,9.796e-05,2]
[401307930,1768123838029,-500.0,9.796e-05,2]
[401307931,1768123838039,-22101.50283196,9.797e-05,2]
[401307932,1768123838049,-517.95251012,9.797e-05,2]
[401307933,1768123838058,-500.0,9.797e-05,2]
[401307934,1768123838068,-500.0,9.797e-05,2]
[401307935,1768123838078,-500.0,9.797e-05,2]
[401307936,1768123838088,-500.0,9.797e-05,2]
[401307937,1768123838098,-500.0,9.797e-05,2]
[401307938,1768123838107,-500.0,9.797e-05,2]
[401307939,1768123838117,-500.0,9.797e-05,2]
[401307940,1768123838127,-500.0,9.797e-05,2]
[401307941,1768123838136,-500.0,9.797e-05,2]
[401307942,1768123838146,-500.0,9.797e-05,2]
[401307943,1768123838156,-500.0,9.797e-05,2]
[401307944,1768123838166,-500.0,9.797e-05,2]
[401307945,1768123838176,-500.0,9.797e-05,2]
[401307946,1768123838185,-500.0,9.797e-05,2]
[401307947,1768123838195,-500.0,9.797e-05,2]
[401307948,1768123838205,-500.0,9.797e-05,2]
[401307949,1768123838215,-500.0,9.797e-05,2]
[401307950,1768123838225,-500.0,9.797e-05,2]
[401307951,1768123838235,-500.0,9.797e-05,2]
[401307952,1768123838246,-500.0,9.797e-05,2]
[401307953,1768123838255,-500.0,9.797e-05,2]
[401307954,1768123838265,-595.11342099,9.797e-05,2]
[401307955,1768123838275,-1000000.0,9.798e-05,2]
[401307956,1768123838285,-333.99,0.0001,2]
[401307957,1768123838295,-163059.69,0.0001,2]
[401307958,1768123838306,-300.0,0.00010199,2]
[401307959,1768123838315,-300.0,0.00010199,2]
[401307960,1768123838324,-300.0,0.00010199,2]
[401307961,1768123838334,-300.0,0.00010199,2]
[401307962,1768123838343,-300.0,0.00010199,2]
[401307963,1768123838352,-300.0,0.00010199,2]
[401307964,1768123838362,-300.0,0.00010199,2]
[401307965,1768123838372,-300.0,0.00010199,2]
[401307966,1768123838381,-300.0,0.00010199,2]
[401307967,1768123838391,-300.0,0.00010199,2]
[401307968,1768123838400,-300.0,0.00010199,2]
[401307969,1768123838410,-300.0,0.00010199,2]
[401307970,1768123838419,-300.0,0.00010199,2]
[401307971,1768123838428,-300.0,0.00010199,2]
[401307972,1768123838438,-300.0,0.00010199,2]
[401307973,1768123838447,-600.0,0.00010199,2]
[401307974,1768123838457,-333.99,0.000102,2]
[401307975,1768123838467,-2560.29818,0.00010334,2]
[401307976,1768123838476,-333.99,0.000104,2]
[401307977,1768123838485,-333.99,0.000106,2]
[401307978,1768123838497,-420.0,0.00010775,2]
[401307979,1768123838509,-1200.0,0.00010775,2]
[401307980,1768123838519,-333.99,0.000108,2]
[401307981,1768123838529,-2189.16834358,0.00010989,2]
[401307982,1768123838538,-333.99,0.00011,2]
[401307983,1768123838549,-720.0,0.00011219,2]
[401307984,1768123838559,-177.0,0.00011601,2]
[401307985,1768123838568,-180.0,0.00011853,2]
[401307986,1768123838578,-306.827937,0.00011877,2]
[401307987,1768123838588,-300.0,0.0001194,2]
[401307988,1768123838598,-250.0,0.00011973,2]
[401307989,1768123838612,-500.0,0.00012329,2]
[401307990,1768123838622,-500.0,0.00012329,2]
[401307991,1768123838632,-500.0,0.00012329,2]
[401307992,1768123838642,-500.0,0.00012329,2]
[401307993,1768123838652,-500.0,0.00012329,2]
[401307994,1768123838661,-500.0,0.00012329,2]
[401307995,1768123838671,-500.0,0.00012329,2]
[401307996,1768123838681,-500.0,0.00012329,2]
[401307997,1768123838690,-500.0,0.00012329,2]
[401307998,1768123838699,-500.0,0.00012329,2]
[401307999,1768123838708,-500.0,0.00012329,2]
[401308000,1768123838717,-500.0,0.00012329,2]
[401308001,1768123838727,-505.51597964,0.00012329,2]
[401308002,1768123838737,-500.0,0.00012329,2]
[401308003,1768123838747,-500.0,0.00012329,2]
[401308004,1768123838758,-500.0,0.00012329,2]
[401308005,1768123838767,-500.0,0.00012329,2]
[401308006,1768123838915,-500.0,0.00012329,2]
[401308007,1768123838924,-500.0,0.00012329,2]
[401308008,1768123838934,-500.0,0.00012329,2]
[401308009,1768123838943,-500.0,0.00012329,2]
[401308010,1768123838952,-500.0,0.00012329,2]
[401308011,1768123838962,-500.0,0.00012329,2]
[401308012,1768123838971,-864.0,0.00012341,2]
[401308013,1768123838980,-3521.30514597,0.000125,2]
[401308014,1768123838990,-500.0,0.00013173,2]
[401308015,1768123839000,-500.0,0.00013173,2]
[401308016,1768123839010,-500.0,0.00013173,2]
[401308017,1768123839020,-500.0,0.00013173,2]
[401308018,1768123839029,-500.0,0.00013173,2]
[401308019,1768123839038,-500.0,0.00013173,2]
[401308020,1768123839048,-500.0,0.00013173,2]
[401308021,1768123839058,-500.0,0.00013173,2]
[401308022,1768123839068,-500.0,0.00013173,2]
[401308023,1768123839076,-500.0,0.00013173,2]
[401308024,1768123839086,-500.0,0.00013173,2]
[401308025,1768123839096,-500.0,0.00013173,2]
[401308026,1768123839104,-500.0,0.00013173,2]
[401308027,1768123839113,-500.0,0.00013173,2]
[401308028,1768123839122,-500.0,0.00013273,2]
[401308029,1768123839131,-503.26850674,0.00013273,2]
[401308030,1768123839140,-500.0,0.00013273,2]
[401308031,1768123839150,-155.72124395,0.00013273,2]
[401308032,1768123839159,-500.0,0.00013273,2]
[401308033,1768123839168,-500.0,0.00013273,2]
[401308034,1768123839177,-500.0,0.00013273,2]
[401308035,1768123839186,-500.0,0.00013273,2]
[401308036,1768123839196,-500.0,0.00013273,2]
[401308037,1768123839206,-1000.0,0.00013575,2]
[401308038,1768123839215,-204.0,0.00013601,2]
[401308039,1768123839224,-12011.786733,0.00013699,2]
[401308040,1768123839233,-1000.0,0.00013699,2]
[401308041,1768123839243,-500.0,0.00013699,2]
[401308042,1768123839252,-578.16970935,0.00013699,2]
[401308043,1768123839261,-500.0,0.00013699,2]
[401308044,1768123839270,-500.0,0.00013699,2]
[401308045,1768123839279,-500.0,0.00013699,2]
[401308046,1768123839289,-570.28131147,0.00013821,2]
[401308047,1768123839298,-1000.0,0.00013821,2]
[401308048,1768123839307,-1000.0,0.00013821,2]
[401308049,1768123839316,-1000.0,0.00013821,2]
[401308050,1768123839325,-1000.0,0.00013821,2]
[401308051,1768123839334,-1000.0,0.00013821,2]
[401308052,1768123839342,-1000.0,0.00013821,2]
[401308053,1768123839351,-319.8575815,0.00014247,2]
[401308054,1768123839360,-1178.38612751,0.00014368,2]
[401308055,1768123839369,-65842.34905369,0.00014736,2]
[401308056,1768123839378,-1000.0,0.00014932,2]
[401308057,1768123839387,-244.0,0.00014932,2]
[401308058,1768123839396,-231.0,0.00015601,2]
[401308059,1768123839405,-2096.819629,0.00015841,2]
[401308060,1768123839414,-1178.73811921,0.00016084,2]
[401308061,1768123839423,-1294.21,0.00016326,2]
[401308062,1768123839432,-1000.0,0.00016426,2]
[401308063,1768123839441,-492.0,0.00016426,2]
[401308064,1768123839450,-500.0,0.00016438,2]
[401308065,1768123839458,-500.0,0.00016438,2]
[401308066,1768123839467,-500.0,0.00016438,2]
[401308067,1768123839475,-500.0,0.00016438,2]
[401308068,1768123839484,-647.34740616,0.00016438,2]
[401308069,1768123839493,-999.0,0.00016917,2]
[401308070,1768123839503,-29268.59240056,0.00017,2]
[401308071,1768123839513,-1041.66666667,0.00017216,2]
[401308072,1768123839521,-258.0,0.00017601,2]
[401308073,1768123839531,-1000.0,0.00018068,2]
[401308074,1768123839540,-791.0,0.00018068,2]
[401308075,1768123839550,-4714.95247684,0.00018481,2]
[401308076,1768123839559,-303.10001603,0.000189,2]
[401308077,1768123839568,-303.10001603,0.00019089,2]
[401308078,1768123839578,-303.10001603,0.00019278,2]
[401308079,1768123839588,-1664.76,0.000193,2]
[401308080,1768123839598,-303.10001603,0.00019467,2]
[401308081,1768123839607,-285.0,0.00019601,2]
[401308082,1768123839616,-303.10001603,0.00019656,2]
[401308083,1768123839626,-454.65002405,0.00019845,4]
[401308084,1768123839635,-1000.0,0.00019875,2]
[401308085,1768123839645,-1000.0,0.00019875,2]
[401308086,1768123839654,-52113.00553346,0.0002,2]
[401308087,1768123839663,-454.65002405,0.00020034,4]
[401308088,1768123839673,-454.65002405,0.00020223,4]
[401308089,1768123839682,-454.65002405,0.00020412,4]
[401308090,1768123839692,-154.05532899,0.0002055,2]
[401308092,1768123839701,-454.65002405,0.00020601,4]
[401308094,1768123839709,-3000.0,0.00021,2]
[401308096,1768123839718,-3000.0,0.0002101,2]
[401308098,1768123839728,-3000.0,0.0002102,2]
[401308100,1768123839737,-3000.0,0.0002103,2]
[401308102,1768123839746,-3000.0,0.0002104,2]
[401308104,1768123839755,-3000.0,0.0002105,2]
[401308106,1768123839764,-3000.0,0.0002106,2]
[401308108,1768123839773,-3000.0,0.0002107,2]
[401308110,1768123839782,-3000.0,0.0002108,2]
[401308112,1768123839791,-3000.0,0.0002109,2]
[401308114,1768123839799,-3000.0,0.000211,2]
[401308116,1768123839809,-3000.0,0.0002111,2]
[401308118,1768123839818,-3000.0,0.0002112,2]
[401308120,1768123839827,-3000.0,0.0002113,2]
[401308122,1768123839836,-3000.0,0.0002114,2]
[401308124,1768123839845,-3000.0,0.0002115,2]
[401308126,1768123839853,-5944.891896,0.0002116,2]
[401308128,1768123839862,-398.71743977,0.00021223,2]
[401308130,1768123839871,-312.0,0.00021601,2]
[401308132,1768123839880,-1000.0,0.00021862,10]
[401308134,1768123839889,-1000.0,0.00021862,10]
[401308136,1768123839899,-579.0,0.00021862,10]
[401308138,1768123839908,-1594.86975909,0.00021955,2]
[401308140,1768123839917,-171.76743789,0.00022071,2]
[401308141,1768123839926,-3588.45695795,0.00022686,2]
[401308143,1768123839936,-326.0,0.00022898,2]
[401308145,1768123839946,-171.76743789,0.00023001,56]
[401308147,1768123839956,-417.0,0.00023117,2]
[401308149,1768123839966,-528.0,0.00023302,2]